fUST/lending_fUST_20240802
["ID","MTS","AMOUNT","RATE_DAILY","PERIOD"]
[333877876,1722591046494,-500.0,0.00013972,2]
[333877877,1722591046503,-500.0,0.00013972,2]
[333877878,1722591046513,-7.74955284,0.00013972,2]
[333877879,1722591046531,-492.25044716,0.00013972,2]
[333877880,1722591046542,-500.0,0.00013972,2]
[333877881,1722591046555,-500.0,0.00013972,2]
[333877882,1722591046565,-500.0,0.00013972,2]
[333877883,1722591046574,-500.0,0.00013972,2]
[333877884,1722591046583,-500.0,0.00013972,2]
[333877885,1722591046593,-500.0,0.00013972,2]
[333877886,1722591046602,-151.0,0.00013972,2]
[333877887,1722591046612,-500.0,0.00013972,2]
[333877888,1722591046621,-503.74727842,0.00013972,2]
[333877889,1722591046631,-500.0,0.00013972,2]
[333877890,1722591046641,-500.0,0.00013972,2]
[333877891,1722591046650,-500.0,0.00013972,2]
[333877892,1722591046660,-151.0,0.00013972,2]
[333877893,1722591046669,-898.22,0.00013972,2]
[333877894,1722591046678,-1667.31,0.00013972,2]
[333877895,1722591046688,-212.49639871,0.00013972,2]
[333877896,1722591046889,-35.48043104,0.00013972,2]
[333877897,1722591046899,-500.0,0.00013972,2]
[333877898,1722591046910,-151.0,0.00013972,2]
[333877899,1722591046920,-562.08,0.00013972,2]
[333877900,1722591046931,-151.0,0.00013972,2]
[333877901,1722591046941,-500.0,0.00013972,2]
[333877902,1722591046951,-500.0,0.00013972,2]
[333877903,1722591046961,-600.19715287,0.00013972,2]
[333877904,1722591046971,-500.0,0.00013972,2]
[333877905,1722591046981,-563.78,0.00013972,2]
[333877906,1722591046991,-500.0,0.00013972,2]
[333877907,1722591047001,-500.0,0.00013972,2]
[333877908,1722591047010,-500.0,0.00013972,2]
[333877909,1722591047022,-2162.76,0.00013972,2]
[333877910,1722591047033,-500.0,0.00013972,2]
[333877911,1722591047043,-500.0,0.00013972,2]
[333877912,1722591047054,-500.0,0.00013972,2]
[333877913,1722591047063,-500.0,0.00013972,2]
[333877914,1722591047072,-500.0,0.00013972,2]
[333877915,1722591047081,-563.08,0.00013972,2]
[333877916,1722591047090,-500.0,0.00013972,2]
[333877917,1722591047099,-500.0,0.00013972,2]
[333877918,1722591047110,-500.0,0.00013972,2]
[333877919,1722591047119,-500.0,0.00013972,2]
[333877920,1722591047128,-1051.7,0.00013972,2]
[333877921,1722591047137,-500.0,0.00013972,2]
[333877922,1722591047147,-500.0,0.00013972,2]
[333877923,1722591047157,-500.0,0.00013972,2]
[333877924,1722591047166,-500.0,0.00013972,2]
[333877925,1722591047175,-500.0,0.00013972,2]
[333877926,1722591047185,-500.0,0.00013972,2]
[333877927,1722591047195,-500.0,0.00013972,2]
[333877928,1722591047207,-500.0,0.00013972,2]
[333877929,1722591047216,-500.0,0.00013972,2]
[333877930,1722591047226,-500.0,0.00013972,2]
[333877931,1722591047236,-500.0,0.00013972,2]
[333877932,1722591047247,-500.0,0.00013972,2]
[333877933,1722591047256,-500.0,0.00013972,2]
[333877934,1722591047267,-500.0,0.00013972,2]
[333877935,1722591047276,-424.05041826,0.00013972,2]
[333877936,1722591047290,-75.94958174,0.00013972,2]
[333877937,1722591047299,-500.0,0.00013972,2]
[333877938,1722591047309,-500.0,0.00013972,2]
[333877939,1722591047319,-500.0,0.00013972,2]
[333877940,1722591047330,-339.736706,0.00013972,2]
[333877941,1722591047340,-151.0,0.00013972,2]
[333877942,1722591047349,-204.21503697,0.00013972,2]
[333877998,1722591729029,1000.0,0.00027,120]
[333878240,1722592238254,-1154.7977786,0.00012378,2]
[333878241,1722592238264,-173.375692,0.00012442,2]
[333878242,1722592238274,-173.375692,0.00012605,2]
[333878243,1722592238283,-173.375692,0.00012767,2]
[333878244,1722592238294,-173.375692,0.00012929,2]
[333878245,1722592238303,-162.42091,0.00012986,2]
[333878247,1722592238312,-173.375692,0.00013091,2]
[333878250,1722592238322,-2328.47483534,0.00013598,2]
[333878251,1722592238331,-905.7,0.00013697,2]
[333878252,1722592238342,-500.0,0.00013698,2]
[333878253,1722592238354,-500.37493868,0.00013698,2]
[333878254,1722592238364,-297.97492964,0.00013698,2]
[333878255,1722592238374,-500.0,0.00013698,2]
[333878256,1722592238385,-500.0,0.00013698,2]
[333878257,1722592238395,-500.0,0.00013698,2]
[333878258,1722592238406,-500.0,0.00013698,2]
[333878259,1722592238416,-545.45,0.00013698,2]
[333878260,1722592238426,-500.0,0.00013698,2]
[333878261,1722592238436,-500.0,0.00013698,2]
[333878262,1722592238447,-500.0,0.00013698,2]
[333878263,1722592238456,-500.0,0.00013698,2]
[333878264,1722592238467,-500.0,0.00013698,2]
[333878265,1722592238477,-500.0,0.00013698,2]
[333878266,1722592238490,-500.0,0.00013698,2]
[333878267,1722592238500,-500.0,0.00013698,2]
[333878268,1722592238510,-500.0,0.00013698,2]
[333878270,1722592238521,-500.0,0.00013698,2]
[333878271,1722592238532,-500.0,0.00013698,2]
[333878273,1722592238542,-500.0,0.00013698,2]
[333878275,1722592238552,-500.0,0.00013698,2]
[333878277,1722592238561,-500.0,0.00013698,2]
[333878279,1722592238571,-500.0,0.00013698,2]
[333878281,1722592238581,-500.0,0.00013698,2]
[333878283,1722592238591,-500.0,0.00013698,2]
[333878285,1722592238601,-500.0,0.00013698,2]
[333878287,1722592238612,-500.0,0.00013698,2]
[333878289,1722592238622,-500.0,0.00013698,2]
[333878291,1722592238633,-292.14,0.00013698,2]
[333878293,1722592238643,-318.18,0.00013698,2]
[333878295,1722592238653,-500.0,0.00013698,2]
[333878297,1722592238663,-500.0,0.00013698,2]
[333878299,1722592238672,-500.0,0.00013698,2]
[333878301,1722592238682,-500.0,0.00013698,2]
[333878303,1722592238692,-500.0,0.00013698,2]
[333878305,1722592238701,-500.0,0.00013698,2]
[333878307,1722592238711,-500.0,0.00013698,2]
[333878309,1722592238721,-500.0,0.00013698,2]
[333878311,1722592238735,-500.0,0.00013698,2]
[333878312,1722592238744,-599.15,0.00013698,2]
[333878314,1722592238754,-500.0,0.00013698,2]
[333878316,1722592238764,-500.0,0.00013698,2]
[333878318,1722592238773,-500.0,0.00013698,2]
[333878320,1722592238783,-500.0,0.00013698,2]
[333878322,1722592238793,-500.0,0.00013698,2]
[333878324,1722592238802,-500.0,0.00013698,2]
[333878326,1722592238812,-500.0,0.00013698,2]
[333878328,1722592238822,-500.0,0.00013698,2]
[333878330,1722592238832,-500.0,0.00013698,2]
[333878332,1722592238841,-500.0,0.00013698,2]
[333878334,1722592238851,-500.0,0.00013698,2]
[333878335,1722592238861,-500.0,0.00013698,2]
[333878337,1722592238873,-500.0,0.00013698,2]
[333878339,1722592238883,-500.0,0.00013698,2]
[333878341,1722592238893,-500.0,0.00013698,2]
[333878343,1722592238903,-512.50882319,0.00013698,2]
[333878344,1722592238912,-500.0,0.00013698,2]
[333878345,1722592238922,-500.0,0.00013698,2]
[333878346,1722592238932,-500.0,0.00013698,2]
[333878347,1722592238941,-500.0,0.00013698,2]
[333878349,1722592238952,-500.0,0.00013698,2]
[333878361,1722592239075,-500.0,0.00013698,2]
[333878363,1722592239090,-505.5621124,0.00013698,2]
[333878365,1722592239100,-500.0,0.00013698,2]
[333878367,1722592239110,-500.0,0.00013698,2]
[333878370,1722592239121,-500.0,0.00013698,2]
[333878372,1722592239132,-500.0,0.00013698,2]
[333878374,1722592239143,-500.0,0.00013698,2]
[333878376,1722592239155,-500.0,0.00013698,2]
[333878378,1722592239166,-500.0,0.00013698,2]
[333878380,1722592239177,-1753.21,0.00013698,2]
[333878382,1722592239187,-539.75,0.00013698,2]
[333878384,1722592239197,-500.0,0.00013698,2]
[333878386,1722592239207,-500.0,0.00013698,2]
[333878388,1722592239218,-574.15,0.00013698,2]
[333878390,1722592239232,-500.0,0.00013698,2]
[333878393,1722592239243,-500.0,0.00013698,2]
[333878395,1722592239253,-500.0,0.00013698,2]
[333878397,1722592239263,-500.0,0.00013698,2]
[333878399,1722592239272,-1528.37,0.00013698,2]
[333878400,1722592239282,-2112.51,0.00013698,2]
[333878402,1722592239291,-500.0,0.00013698,2]
[333878404,1722592239301,-500.0,0.00013698,2]
[333878406,1722592239311,-839.08,0.00013698,2]
[333878409,1722592239322,-500.0,0.00013698,2]
[333878411,1722592239332,-500.0,0.00013698,2]
[333878413,1722592239343,-500.0,0.00013698,2]
[333878415,1722592239353,-500.0,0.00013698,2]
[333878417,1722592239364,-500.0,0.00013698,2]
[333878419,1722592239374,-500.0,0.00013698,2]
[333878420,1722592239384,-500.0,0.00013698,2]
[333878421,1722592239394,-316.92598433,0.00013698,2]
[333878515,1722592240566,-183.07401567,0.00013698,2]
[333878517,1722592240576,-500.0,0.00013698,2]
[333878519,1722592240586,-516.8,0.00013698,2]
[333878521,1722592240596,-500.0,0.00013698,2]
[333878523,1722592240606,-500.0,0.00013698,2]
[333878525,1722592240615,-823.37,0.00013698,2]
[333878527,1722592240624,-116.11007022,0.00013698,2]
[333878529,1722592240636,-383.88992978,0.00013698,2]
[333878531,1722592240646,-500.0,0.00013698,2]
[333878533,1722592240655,-1086.15120689,0.00013698,2]
[333878535,1722592240667,-986.49879311,0.00013698,2]
[333878537,1722592240676,-500.0,0.00013698,2]
[333878539,1722592240686,-500.0,0.00013698,2]
[333878541,1722592240695,-500.0,0.00013698,2]
[333878543,1722592240705,-500.0,0.00013698,2]
[333878545,1722592240714,-1007.88,0.00013698,2]
[333878547,1722592240724,-500.0,0.00013698,2]
[333878549,1722592240739,-500.0,0.00013698,2]
[333878551,1722592240748,-500.0,0.00013698,2]
[333878553,1722592240759,-500.0,0.00013698,2]
[333878555,1722592240770,-500.0,0.00013698,2]
[333878557,1722592240780,-500.0,0.00013698,2]
[333878560,1722592240791,-500.0,0.00013698,2]
[333878562,1722592240803,-500.0,0.00013698,2]
[333878564,1722592240813,-500.0,0.00013698,2]
[333878566,1722592240824,-500.0,0.00013698,2]
[333878568,1722592240835,-539.62,0.00013698,2]
[333878569,1722592240845,-500.0,0.00013698,2]
[333878571,1722592240856,-500.0,0.00013698,2]
[333878573,1722592240868,-500.0,0.00013698,2]
[333878576,1722592240880,-500.0,0.00013698,2]
[333878578,1722592240889,-500.0,0.00013698,2]
[333878580,1722592240903,-500.0,0.00013698,2]
[333878582,1722592240914,-500.0,0.00013698,2]
[333878584,1722592240927,-500.0,0.00013698,2]
[333878586,1722592240939,-500.0,0.00013698,2]
[333878588,1722592240951,-500.0,0.00013698,2]
[333878590,1722592240962,-500.0,0.00013698,2]
[333878592,1722592240972,-500.0,0.00013698,2]
[333878594,1722592240983,-500.0,0.00013698,2]
[333878596,1722592240993,-500.0,0.00013698,2]
[333878598,1722592241003,-500.0,0.00013698,2]
[333878600,1722592241013,-1709.57,0.00013698,2]
[333878602,1722592241023,-500.0,0.00013698,2]
[333878604,1722592241034,-561.33799738,0.00013698,2]
[333878606,1722592241043,-500.0,0.00013698,2]
[333878608,1722592241053,-500.0,0.00013698,2]
[333878610,1722592241065,-500.0,0.00013698,2]
[333878612,1722592241076,-500.0,0.00013698,2]
[333878615,1722592241088,-247.62603104,0.00013698,2]
[333878617,1722592241098,-819.59,0.00013698,2]
[333878619,1722592241109,-500.0,0.00013698,2]
[333878621,1722592241118,-500.0,0.00013698,2]
[333878623,1722592241127,-500.0,0.00013698,2]
[333878625,1722592241137,-500.0,0.00013698,2]
[333878627,1722592241147,-500.0,0.00013698,2]
[333878629,1722592241156,-500.0,0.00013698,2]
[333878631,1722592241166,-3000.0,0.00013699,2]
[333878633,1722592241175,-4349.07410315,0.0001381,2]
[333878635,1722592241185,-1038.98615444,0.00013871,2]
[333878637,1722592241195,-150.0,0.00013876,2]
[333878639,1722592241205,-905.7,0.00013901,2]
[333878641,1722592241216,-500.0,0.00013947,2]
[333878643,1722592241225,-500.0,0.0001395,2]
[333878645,1722592241237,-500.0,0.00013961,2]
[333878647,1722592241247,-500.0,0.00013961,2]
[333878649,1722592241256,-500.0,0.00013961,2]
[333878651,1722592241265,-500.0,0.00013961,2]
[333878653,1722592241275,-500.0,0.00013961,2]
[333878655,1722592241284,-905.7,0.00013961,2]
[333878657,1722592241293,-905.7,0.00013961,2]
[333878658,1722592241302,-500.0,0.00013961,2]
[333878660,1722592241312,-447.36500374,0.00013961,2]
[333878662,1722592241322,-81530.1197926,0.00013962,2]
[333878664,1722592241331,-359.42475422,0.00013964,2]
[333878666,1722592241340,-500.0,0.00013971,2]
[333878668,1722592241350,-280.05291229,0.00013971,2]
[333878669,1722592241359,-500.0,0.00013971,2]
[333878671,1722592241368,-905.7,0.00013971,2]
[333878673,1722592241377,-905.7,0.00013971,2]
[333878675,1722592241386,-905.7,0.00013971,2]
[333878677,1722592241395,-500.0,0.00013972,2]
[333878679,1722592241404,-500.0,0.00013972,2]
[333878681,1722592241413,-500.0,0.00013972,2]
[333878683,1722592241423,-500.0,0.00013972,2]
[333878685,1722592241432,-500.0,0.00013972,2]
[333878687,1722592241443,-500.0,0.00013972,2]
[333878689,1722592241452,-500.0,0.00013972,2]
[333878691,1722592241461,-500.0,0.00013972,2]
[333878693,1722592241471,-500.0,0.00013972,2]
[333878695,1722592241480,-500.0,0.00013972,2]
[333878697,1722592241493,-500.0,0.00013972,2]
[333878699,1722592241503,-515.32158002,0.00013972,2]
[333878701,1722592241513,-500.0,0.00013972,2]
[333878703,1722592241524,-500.0,0.00013972,2]
[333878705,1722592241533,-500.0,0.00013972,2]
[333878707,1722592241543,-500.0,0.00013972,2]
[333878708,1722592241553,-500.0,0.00013972,2]
[333878710,1722592241562,-500.0,0.00013972,2]
[333878712,1722592241571,-500.0,0.00013972,2]
[333878714,1722592241581,-500.0,0.00013972,2]
[333878716,1722592241592,-500.0,0.00013972,2]
[333878719,1722592241604,-500.0,0.00013972,2]
[333878721,1722592241614,-500.0,0.00013972,2]
[333878722,1722592241623,-500.0,0.00013972,2]
[333878724,1722592241633,-500.0,0.00013972,2]
[333878726,1722592241642,-500.0,0.00013972,2]
[333878728,1722592241651,-500.0,0.00013972,2]
[333878730,1722592241661,-500.0,0.00013972,2]
[333878732,1722592241670,-500.0,0.00013972,2]
[333878734,1722592241679,-500.0,0.00013972,2]
[333878736,1722592241689,-500.0,0.00013972,2]
[333878738,1722592241698,-500.0,0.00013972,2]
[333878740,1722592241707,-500.0,0.00013972,2]
[333878742,1722592241717,-500.0,0.00013972,2]
[333878744,1722592241727,-500.0,0.00013972,2]
[333878746,1722592241740,-500.0,0.00013972,2]
[333878748,1722592241750,-500.0,0.00013972,2]
[333878750,1722592241760,-500.0,0.00013972,2]
[333878752,1722592241769,-500.0,0.00013972,2]
[333878754,1722592241779,-1753.21,0.00013972,2]
[333878756,1722592241788,-500.0,0.00013972,2]
[333878758,1722592241798,-574.15,0.00013972,2]
[333878760,1722592241807,-280.18987052,0.00013972,2]
[333878762,1722592241817,-500.0,0.00013972,2]
[333878764,1722592241826,-181.25,0.00013972,2]
[333878766,1722592241835,-1528.37,0.00013972,2]
[333878768,1722592241845,-2112.51,0.00013972,2]
[333878770,1722592241855,-372.44,0.00013972,2]
[333878772,1722592241865,-839.08,0.00013972,2]
[333878774,1722592241877,-500.0,0.00013972,2]
[333878776,1722592241886,-500.0,0.00013972,2]
[333878778,1722592241896,-500.0,0.00013972,2]
[333878780,1722592241906,-500.0,0.00013972,2]
[333878782,1722592241918,-500.0,0.00013972,2]
[333878784,1722592241928,-500.0,0.00013972,2]
[333878786,1722592241938,-500.0,0.00013972,2]
[333878788,1722592241951,-500.0,0.00013972,2]
[333878790,1722592241960,-516.8,0.00013972,2]
[333878792,1722592241970,-387.64760076,0.00013972,2]
[333878794,1722592241979,-500.0,0.00013972,2]
[333878796,1722592241991,-823.37,0.00013972,2]
[333878798,1722592242000,-500.0,0.00013972,2]
[333878800,1722592242009,-500.0,0.00013972,2]
[333878802,1722592242018,-2072.65,0.00013972,2]
[333878804,1722592242028,-500.0,0.00013972,2]
[333878806,1722592242038,-500.0,0.00013972,2]
[333878808,1722592242047,-1007.88,0.00013972,2]
[333878810,1722592242056,-500.0,0.00013972,2]
[333878812,1722592242065,-500.0,0.00013972,2]
[333878814,1722592242074,-500.0,0.00013972,2]
[333878816,1722592242083,-500.0,0.00013972,2]
[333878818,1722592242092,-500.0,0.00013972,2]
[333878820,1722592242102,-500.0,0.00013972,2]
[333878822,1722592242111,-500.0,0.00013972,2]
[333878824,1722592242120,-500.0,0.00013972,2]
[333878826,1722592242130,-539.62,0.00013972,2]
[333878828,1722592242140,-500.0,0.00013972,2]
[333878830,1722592242149,-500.0,0.00013972,2]
[333878832,1722592242158,-355.87000468,0.00013972,2]
[333878834,1722592242167,-500.0,0.00013972,2]
[333878836,1722592242177,-500.0,0.00013972,2]
[333878838,1722592242186,-500.0,0.00013972,2]
[333878840,1722592242194,-500.0,0.00013972,2]
[333878842,1722592242204,-500.0,0.00013972,2]
[333878853,1722592242301,-500.0,0.00013972,2]
[333878855,1722592242310,-500.0,0.00013972,2]
[333878857,1722592242319,-1709.57,0.00013972,2]
[333878859,1722592242329,-500.0,0.00013972,2]
[333878861,1722592242339,-500.0,0.00013972,2]
[333878863,1722592242349,-287.94,0.00013972,2]
[333878865,1722592242359,-819.59,0.00013972,2]
[333878867,1722592242368,-500.0,0.00013972,2]
[333878869,1722592242377,-500.0,0.00013972,2]
[333878871,1722592242386,-500.0,0.00013972,2]
[333878873,1722592242395,-500.0,0.00013972,2]
[333878875,1722592242404,-150.112233,0.00014,2]
[333878877,1722592242413,-150.112233,0.00014,2]
[333878879,1722592242426,-905.7,0.00014041,2]
[333878881,1722592242436,-1038.9861544,0.00014051,2]
[333878883,1722592242445,-354.64622739,0.00014145,2]
[333878885,1722592242454,-211.80389075,0.00014145,2]
[333878887,1722592242463,-9106.75017964,0.00014146,2]
[333879275,1722592246525,-283.42255065,0.00013698,2]
[333880877,1722592850958,3570.0,0.00027,120]
[333880880,1722593234938,600.0,0.00027,120]
[333880883,1722593372991,2000.0,0.00027,120]
[333880884,1722593396214,2000.0,0.00027,120]
[333880885,1722593417783,2000.0,0.00027,120]
[333880990,1722593438429,-163.366705,0.00012569,2]
[333880991,1722593438440,-300.02732335,0.00012668,2]
[333880992,1722593438449,-162.996306,0.00012986,2]
[333880993,1722593438458,-2037.41548094,0.00013598,2]
[333880994,1722593438467,-398.65281982,0.00013628,2]
[333881040,1722593441918,-432.5361037,0.00013628,2]
[333881042,1722593441928,-168054.83982141,0.0001368,2]
[333881044,1722593441940,-6335.26628,0.0001368,2]
[333881482,1722593446833,-14598.28627442,0.0001368,2]
[333881484,1722593446846,-500.0,0.0001368,2]
[333881758,1722593453502,2000.0,0.00027,120]
[333881759,1722593513483,2000.0,0.00027,120]
[333881773,1722594428693,277.93603208,9.999e-05,2]
[333881774,1722594449304,188.16956636,9.999e-05,2]
[333881909,1722594638680,-163.499776,0.00012986,2]
[333881911,1722594638690,-5115.49978018,0.00013184,2]
[333881912,1722594638699,-336.80310683,0.00013248,2]
[333881913,1722594638711,-150.0,0.00013252,2]
[333881914,1722594638720,-300.0,0.00013596,2]
[333881915,1722594638730,-300.0,0.00013596,2]
[333881916,1722594638739,-1929.37613811,0.00013597,2]
[333881918,1722594638749,-2000.0,0.00013598,2]
[333881919,1722594638758,-35768.79494315,0.00013598,2]
[333881921,1722594638768,-1929.37613811,0.00013663,2]
[333881924,1722594638777,-172249.20230484,0.0001368,2]
[333881925,1722594638787,-1992.16,0.00013687,2]
[333881927,1722594638796,-33094.08056756,0.00013688,5]
[333881928,1722594638806,-163763.207485,0.00013688,2]
[333881929,1722594638816,-1992.16,0.00013697,2]
[333881930,1722594638826,-1992.16,0.00013697,2]
[333881931,1722594638835,-500.0,0.00013698,2]
[333881932,1722594638845,-498.9707336,0.00013698,2]
[333881933,1722594638855,-500.0,0.00013698,2]
[333881934,1722594638864,-500.0,0.00013698,2]
[333881935,1722594638874,-500.0,0.00013698,2]
[333881936,1722594638883,-500.0,0.00013698,2]
[333881937,1722594638893,-500.0,0.00013698,2]
[333881938,1722594638902,-500.0,0.00013698,2]
[333881939,1722594638912,-500.0,0.00013698,2]
[333881940,1722594638921,-500.0,0.00013698,2]
[333881941,1722594638932,-500.0,0.00013698,2]
[333881942,1722594638941,-500.0,0.00013698,2]
[333881943,1722594638950,-500.0,0.00013698,2]
[333881944,1722594638960,-500.0,0.00013698,2]
[333881945,1722594638970,-500.0,0.00013698,2]
[333881946,1722594638980,-240.0,0.00013698,2]
[333881947,1722594638990,-500.0,0.00013698,2]
[333881948,1722594639000,-384.92364276,0.00013698,2]
[333881949,1722594639009,-500.0,0.00013698,2]
[333881950,1722594639020,-500.0,0.00013698,2]
[333881951,1722594639030,-503.45363546,0.00013698,2]
[333881952,1722594639040,-532.79055912,0.00013698,2]
[333881953,1722594639049,-500.0,0.00013698,2]
[333881954,1722594639062,-500.0,0.00013698,2]
[333881955,1722594639071,-545.39409708,0.00013698,2]
[333881956,1722594639083,-505.97170029,0.00013698,2]
[333881957,1722594639093,-500.0,0.00013698,2]
[333881958,1722594639102,-500.0,0.00013698,2]
[333881960,1722594639112,-500.0,0.00013698,2]
[333881962,1722594639122,-500.0,0.00013698,2]
[333881964,1722594639131,-500.0,0.00013698,2]
[333881965,1722594639141,-518.07381064,0.00013698,2]
[333881967,1722594639150,-500.0,0.00013698,2]
[333881969,1722594639159,-505.80608488,0.00013698,2]
[333881971,1722594639169,-500.0,0.00013698,2]
[333881973,1722594639179,-500.0,0.00013698,2]
[333881974,1722594639188,-500.0,0.00013698,2]
[333881975,1722594639197,-500.0,0.00013698,2]
[333881976,1722594639207,-500.0,0.00013698,2]
[333881977,1722594639216,-513.66816411,0.00013698,2]
[333881978,1722594639226,-500.0,0.00013698,2]
[333881979,1722594639235,-500.0,0.00013698,2]
[333881980,1722594639245,-500.0,0.00013698,2]
[333881981,1722594639254,-500.0,0.00013698,2]
[333881982,1722594639264,-500.0,0.00013698,2]
[333881983,1722594639275,-500.0,0.00013698,2]
[333881984,1722594639284,-500.0,0.00013698,2]
[333881985,1722594639295,-500.0,0.00013698,2]
[333881986,1722594639309,-500.0,0.00013698,2]
[333881987,1722594639318,-500.0,0.00013698,2]
[333881988,1722594639327,-500.0,0.00013698,2]
[333881989,1722594639336,-500.0,0.00013698,2]
[333881990,1722594639346,-500.0,0.00013698,2]
[333881991,1722594639355,-500.0,0.00013698,2]
[333881992,1722594639366,-500.0,0.00013698,2]
[333881993,1722594639376,-500.0,0.00013698,2]
[333881994,1722594639386,-500.0,0.00013698,2]
[333881995,1722594639398,-503.64346272,0.00013698,2]
[333881996,1722594639407,-500.0,0.00013698,2]
[333881997,1722594639416,-511.11068816,0.00013698,2]
[333881998,1722594639426,-508.12849146,0.00013698,2]
[333881999,1722594639435,-500.0,0.00013698,2]
[333882000,1722594639444,-500.0,0.00013698,2]
[333882001,1722594639456,-500.0,0.00013698,2]
[333882002,1722594639466,-500.0,0.00013698,2]
[333882003,1722594639477,-785.44,0.00013698,2]
[333882004,1722594639487,-500.0,0.00013698,2]
[333882005,1722594639499,-500.0,0.00013698,2]
[333882006,1722594639509,-500.0,0.00013698,2]
[333882007,1722594639519,-500.0,0.00013698,2]
[333882008,1722594639528,-500.0,0.00013698,2]
[333882009,1722594639539,-507.51126654,0.00013698,2]
[333882010,1722594639548,-500.0,0.00013698,2]
[333882011,1722594639561,-327.79382938,0.00013698,2]
[333882012,1722594639571,-500.0,0.00013698,2]
[333882013,1722594639581,-500.0,0.00013698,2]
[333882014,1722594639592,-500.0,0.00013698,2]
[333882015,1722594639602,-570.93090024,0.00013698,2]
[333882016,1722594639612,-438.34662485,0.00013698,2]
[333882017,1722594639622,-500.0,0.00013698,2]
[333882018,1722594639633,-500.0,0.00013698,2]
[333882019,1722594639646,-500.0,0.00013698,2]
[333882020,1722594639657,-500.0,0.00013698,2]
[333882021,1722594639667,-500.0,0.00013698,2]
[333882022,1722594639678,-500.0,0.00013698,2]
[333882023,1722594639689,-500.0,0.00013698,2]
[333882024,1722594639699,-500.0,0.00013698,2]
[333882025,1722594639709,-500.0,0.00013698,2]
[333882026,1722594639722,-500.0,0.00013698,2]
[333882027,1722594639732,-500.0,0.00013698,2]
[333882028,1722594639743,-500.0,0.00013698,2]
[333882029,1722594639753,-502.81910186,0.00013698,2]
[333882030,1722594639765,-500.0,0.00013698,2]
[333882031,1722594639775,-500.0,0.00013698,2]
[333882032,1722594639785,-500.0,0.00013698,2]
[333882033,1722594639796,-500.0,0.00013698,2]
[333882034,1722594639810,-500.0,0.00013698,2]
[333882035,1722594639819,-500.0,0.00013698,2]
[333882036,1722594639829,-500.0,0.00013698,2]
[333882037,1722594639839,-523.84,0.00013698,2]
[333882038,1722594639849,-500.0,0.00013698,2]
[333882039,1722594639862,-522.62450621,0.00013698,2]
[333882040,1722594639871,-500.0,0.00013698,2]
[333882041,1722594639880,-170.0,0.00013698,2]
[333882042,1722594639889,-504.89169099,0.00013698,2]
[333882043,1722594639899,-500.0,0.00013698,2]
[333882044,1722594639908,-501.31763326,0.00013698,2]
[333882045,1722594639917,-500.0,0.00013698,2]
[333882046,1722594639927,-500.0,0.00013698,2]
[333882047,1722594639937,-500.0,0.00013698,2]
[333882048,1722594639948,-500.0,0.00013698,2]
[333882049,1722594639958,-500.0,0.00013698,2]